fUST/lending_fUST_20240720
["ID","MTS","AMOUNT","RATE_DAILY","PERIOD"]
[332706848,1721466640951,-505.02529902,0.00016438,2]
[332706849,1721466640960,-500.0,0.00016438,2]
[332706850,1721466640972,-625.22,0.00016438,2]
[332706851,1721466640983,-533.23,0.00016438,2]
[332706852,1721466640993,-501.52214706,0.00016438,2]
[332706853,1721466641003,-1121.23,0.00016438,2]
[332706854,1721466641013,-500.0,0.00016438,2]
[332706855,1721466641024,-2069.20047712,0.00016438,2]
[332706856,1721466641055,-123.57952288,0.00016438,2]
[332706857,1721466641064,-500.0,0.00016438,2]
[332706858,1721466641075,-500.0,0.00016438,2]
[332706859,1721466641086,-918.75,0.00016438,2]
[332706860,1721466641096,-918.75,0.00016438,2]
[332706861,1721466641108,-918.75,0.00016438,2]
[332706862,1721466641119,-500.0,0.00016438,2]
[332706863,1721466641130,-918.75,0.00016438,2]
[332706864,1721466641139,-918.75,0.00016438,2]
[332706865,1721466641150,-918.75,0.00016438,2]
[332706866,1721466641160,-918.75,0.00016438,2]
[332706867,1721466641170,-918.75,0.00016438,2]
[332706868,1721466641180,-918.75,0.00016438,2]
[332706869,1721466641190,-369.08223782,0.00016438,2]
[332706957,1721466646035,-549.66776218,0.00016438,2]
[332706959,1721466646044,-780.41223782,0.00016438,2]
[332707018,1721466793282,3000.0,0.000225,30]
[332707021,1721467110488,2952.0,0.00016428,62]
[332707022,1721467110956,2952.0,0.00016418,62]
[332707023,1721467111437,2952.0,0.00016408,62]
[332707024,1721467111897,2952.0,0.0001764,62]
[332707025,1721467112582,2952.0,0.0001763,62]
[332707026,1721467112858,2952.0,0.0001762,62]
[332707027,1721467113307,2952.0,0.00019433,62]
[332707028,1721467113772,2952.0,0.00019423,62]
[332707029,1721467114232,2952.0,0.0002105,62]
[332707030,1721467114733,2952.75,0.0002104,62]
[332707056,1721467397461,3000.0,0.000225,30]
[332707069,1721467625117,-166.666666,0.00014795,2]
[332707070,1721467625140,-167.2780016,0.00015252,2]
[332707071,1721467625406,-300.0,0.00015323,2]
[332707072,1721467625429,-300.0,0.00015323,2]
[332707073,1721467625451,-169.33079828,0.00015324,2]
[332707074,1721467630135,-166.666668,0.00015324,2]
[332707075,1721467635083,-1867.87922278,0.00015324,2]
[332707077,1721467645101,-3714.85348558,0.00015324,2]
[332707078,1721467648119,-1698.74217313,0.00015324,2]
[332707079,1721467652115,-750.0,0.00015324,2]
[332707085,1721467681659,482.81796389,9.999e-05,2]
[332707090,1721467733648,155.05697282,9.999e-05,2]
[332707091,1721467736935,19437.43590691,9.999e-05,2]
[332707092,1721467739697,4728.01342085,9.999e-05,2]
[332707093,1721467748403,2529.51118707,9.999e-05,2]
[332707094,1721467748805,2115.75139067,9.999e-05,2]
[332707095,1721467751868,200.6440045,9.999e-05,2]
[332707109,1721467776665,1063.22640053,9.999e-05,2]
[332707111,1721467776686,253.54912933,9.999e-05,2]
[332707113,1721467776707,206.5463282,9.999e-05,2]
[332707115,1721467776728,153.0,9.999e-05,2]
[332707117,1721467776749,253.54102247,9.999e-05,2]
[332707119,1721467776770,250.0,9.999e-05,2]
[332707121,1721467776791,204.85960485,9.999e-05,2]
[332707123,1721467776813,1394.00303034,9.999e-05,2]
[332707124,1721467793787,1328.19906534,0.0001212,2]
[332707125,1721467794923,2291.37449353,0.0001212,2]
[332707134,1721467811204,2828.244819,0.0001212,2]
[332707135,1721467812268,154.93159839,0.0001212,2]
[332707136,1721467814160,270.38675926,0.0001212,2]
[332707137,1721467819642,240.27901755,0.0001212,2]
[332707138,1721467822594,156.39037723,0.0001212,2]
[332707139,1721467822926,200.36546091,0.0001212,2]
[332707140,1721467826075,154.79103211,0.0001212,2]
[332707141,1721467826485,532.67136146,0.0001212,2]
[332707142,1721467826918,525.89628869,0.0001212,2]
[332707143,1721467828141,2154.432864,0.0001212,2]
[332707144,1721467828328,3065.25252519,0.0001212,2]
[332707145,1721467828791,154.72922386,0.0001212,2]
[332707225,1721467832381,340.18246093,0.0001212,2]
[332707253,1721467833593,4705.13479707,0.0001212,2]
[332707258,1721467837557,154.72922386,0.0001212,2]
[332707282,1721467838052,-155.08362765,0.00014691,2]
[332707284,1721467838062,-309.45725408,0.00015,2]
[332707286,1721467838072,-183.1071071,0.00015324,2]
[332707288,1721467838081,-290.01323854,0.00015324,2]
[332707290,1721467838091,-229.43037279,0.00015712,2]
[332707292,1721467838101,-527.90051199,0.00015744,2]
[332707294,1721467838110,-300.0,0.00015744,2]
[332707295,1721467838120,-495.59226691,0.00015746,2]
[332707296,1721467838133,-2123.34975363,0.00015851,2]
[332707298,1721467838144,-155.64887406,0.00016038,2]
[332707299,1721467838154,-367.31035882,0.00016172,2]
[332707300,1721467838164,-153.0,0.000162,2]
[332707301,1721467838173,-153.0,0.00016252,2]
[332707302,1721467838182,-5303.4494987,0.00016272,2]
[332707303,1721467838191,-1504.54578589,0.00016328,2]
[332707304,1721467838200,-1017.11493486,0.00016338,2]
[332707305,1721467838209,-500.0,0.00016399,2]
[332707306,1721467838218,-500.0,0.00016399,2]
[332707307,1721467838227,-302.98880753,0.00016399,2]
[332707308,1721467838236,-500.0,0.00016399,2]
[332707309,1721467838246,-500.0,0.00016399,2]
[332707310,1721467838255,-500.0,0.00016399,2]
[332707311,1721467838266,-500.0,0.00016399,2]
[332707312,1721467838276,-500.0,0.00016399,2]
[332707313,1721467838285,-500.0,0.00016399,2]
[332707314,1721467838294,-500.0,0.00016399,2]
[332707315,1721467838304,-500.0,0.00016399,2]
[332707316,1721467838313,-500.0,0.00016399,2]
[332707317,1721467838323,-500.0,0.00016399,2]
[332707318,1721467838332,-500.0,0.00016399,2]
[332707319,1721467838342,-500.0,0.00016399,2]
[332707320,1721467838351,-500.0,0.00016399,2]
[332707321,1721467838361,-500.0,0.00016399,2]
[332707322,1721467838371,-500.0,0.00016399,2]
[332707323,1721467838381,-421.17085005,0.00016399,2]
[332707324,1721467838393,-500.0,0.00016399,2]
[332707325,1721467838402,-500.0,0.00016399,2]
[332707326,1721467838411,-500.0,0.00016399,2]
[332707327,1721467838421,-153.0,0.000164,2]
[332707328,1721467838430,-7742.22828936,0.000164,2]
[332707329,1721467838442,-507.65,0.0001642,2]
[332707330,1721467838451,-1407.0,0.0001642,2]
[332707331,1721467838461,-46043.0706862,0.00016428,2]
[332707332,1721467838471,-24792.4226772,0.00016428,2]
[332707333,1721467838481,-500.0,0.00016437,2]
[332707334,1721467838491,-269.05824807,0.00016437,2]
[332707335,1721467838501,-188.41983754,0.00016437,2]
[332707336,1721467838511,-500.0,0.00016437,2]
[332707337,1721467838520,-300.25244744,0.00016437,2]
[332707338,1721467838530,-276.44963275,0.00016437,2]
[332707339,1721467838540,-500.0,0.00016437,2]
[332707340,1721467838549,-471.97954156,0.00016437,2]
[332707341,1721467838559,-500.0,0.00016437,2]
[332707342,1721467838570,-601.24518489,0.00016437,2]
[332707343,1721467838579,-500.0,0.00016437,2]
[332707344,1721467838588,-500.0,0.00016438,2]
[332707345,1721467838599,-500.0,0.00016438,2]
[332707346,1721467838608,-619.8,0.00016438,2]
[332707347,1721467838619,-500.0,0.00016438,2]
[332707348,1721467838628,-500.0,0.00016438,2]
[332707349,1721467838640,-500.0,0.00016438,2]
[332707350,1721467838651,-941.04,0.00016438,2]
[332707351,1721467838661,-672.04,0.00016438,2]
[332707352,1721467838671,-553.23,0.00016438,2]
[332707353,1721467838681,-500.0,0.00016438,2]
[332707354,1721467838694,-500.0,0.00016438,2]
[332707355,1721467838704,-1032.64,0.00016438,2]
[332707356,1721467838715,-500.0,0.00016438,2]
[332707357,1721467838725,-500.0,0.00016438,2]
[332707358,1721467838734,-500.0,0.00016438,2]
[332707359,1721467838744,-500.0,0.00016438,2]
[332707360,1721467838754,-500.0,0.00016438,2]
[332707361,1721467838766,-501.61,0.00016438,2]
[332707362,1721467838776,-500.0,0.00016438,2]
[332707363,1721467838786,-591.24,0.00016438,2]
[332707364,1721467838796,-524.68423695,0.00016438,2]
[332707365,1721467838806,-500.0,0.00016438,2]
[332707366,1721467838816,-500.0,0.00016438,2]
[332707367,1721467838824,-500.0,0.00016438,2]
[332707368,1721467838834,-588.21,0.00016438,2]
[332707369,1721467838844,-500.0,0.00016438,2]
[332707370,1721467838854,-500.0,0.00016438,2]
[332707371,1721467838865,-500.0,0.00016438,2]
[332707372,1721467838881,-519.22,0.00016438,2]
[332707373,1721467838891,-500.0,0.00016438,2]
[332707374,1721467838901,-500.0,0.00016438,2]
[332707375,1721467838911,-500.0,0.00016438,2]
[332707376,1721467838923,-500.0,0.00016438,2]
[332707377,1721467838933,-500.0,0.00016438,2]
[332707378,1721467838944,-556.59,0.00016438,2]
[332707379,1721467838954,-1199.96,0.00016438,2]
[332707380,1721467838963,-500.0,0.00016438,2]
[332707381,1721467838974,-500.0,0.00016438,2]
[332707382,1721467838984,-698.36,0.00016438,2]
[332707383,1721467838994,-500.0,0.00016438,2]
[332707384,1721467839004,-500.0,0.00016438,2]
[332707385,1721467839014,-500.0,0.00016438,2]
[332707386,1721467839023,-503.15732607,0.00016438,2]
[332707387,1721467839032,-500.0,0.00016438,2]
[332707388,1721467839042,-500.0,0.00016438,2]
[332707389,1721467839051,-500.0,0.00016438,2]
[332707390,1721467839061,-1036.76,0.00016438,2]
[332707391,1721467839071,-500.0,0.00016438,2]
[332707392,1721467839081,-500.0,0.00016438,2]
[332707393,1721467839091,-500.0,0.00016438,2]
[332707394,1721467839100,-500.0,0.00016438,2]
[332707395,1721467839109,-500.0,0.00016438,2]
[332707396,1721467839119,-500.0,0.00016438,2]
[332707397,1721467839128,-500.0,0.00016438,2]
[332707398,1721467839138,-500.0,0.00016438,2]
[332707399,1721467839148,-487.84489524,0.00016438,2]
[332707400,1721467839157,-500.0,0.00016438,2]
[332707401,1721467839169,-500.0,0.00016438,2]
[332707402,1721467839179,-501.84135806,0.00016438,2]
[332707403,1721467839190,-500.0,0.00016438,2]
[332707404,1721467839202,-500.0,0.00016438,2]
[332707405,1721467839212,-500.0,0.00016438,2]
[332707406,1721467839222,-500.0,0.00016438,2]
[332707407,1721467839233,-525.22,0.00016438,2]
[332707408,1721467839243,-500.0,0.00016438,2]
[332707409,1721467839253,-500.0,0.00016438,2]
[332707410,1721467839264,-500.0,0.00016438,2]
[332707411,1721467839274,-150.0,0.00016438,2]
[332707412,1721467839285,-500.0,0.00016438,2]
[332707413,1721467839295,-2416.95,0.00016438,2]
[332707414,1721467839305,-500.0,0.00016438,2]
[332707415,1721467839315,-608.22,0.00016438,2]
[332707416,1721467839325,-547.64,0.00016438,2]
[332707417,1721467839334,-500.0,0.00016438,2]
[332707418,1721467839344,-212.60432198,0.00016438,2]
[332707419,1721467839354,-500.0,0.00016438,2]
[332707420,1721467839363,-2356.15,0.00016438,2]
[332707421,1721467839373,-2025.13,0.00016438,2]
[332707422,1721467839383,-500.0,0.00016438,2]
[332707423,1721467839395,-745.87,0.00016438,2]
[332707424,1721467839406,-500.0,0.00016438,2]
[332707425,1721467839418,-603.94,0.00016438,2]
[332707426,1721467839429,-408.58977275,0.00016438,2]
[332707427,1721467839441,-500.0,0.00016438,2]
[332707428,1721467839451,-500.0,0.00016438,2]
[332707429,1721467839461,-502.41605619,0.00016438,2]
[332707430,1721467839470,-446.23956577,0.00016438,2]
[332707431,1721467839479,-595.10420466,0.00016438,2]
[332707432,1721467839488,-536.11420788,0.00016438,2]
[332707433,1721467839498,-866.54,0.00016438,2]
[332707434,1721467839508,-541.0,0.00016438,2]
[332707435,1721467839517,-734.57,0.00016438,2]
[332707436,1721467839527,-500.0,0.00016438,2]
[332707437,1721467839536,-500.0,0.00016438,2]
[332707438,1721467839546,-500.0,0.00016438,2]
[332707439,1721467839555,-500.0,0.00016438,2]
[332707440,1721467839565,-500.0,0.00016438,2]
[332707441,1721467839575,-1705.15,0.00016438,2]
[332707442,1721467839585,-500.0,0.00016438,2]
[332707443,1721467839596,-500.0,0.00016438,2]
[332707444,1721467839605,-500.0,0.00016438,2]
[332707446,1721467839614,-500.0,0.00016438,2]
[332707447,1721467839623,-2166.93,0.00016438,2]
[332707448,1721467839634,-151.0,0.00016438,2]
[332707449,1721467839643,-151.0,0.00016438,2]
[332707450,1721467839653,-151.0,0.00016438,2]
[332707451,1721467839663,-151.0,0.00016438,2]
[332707452,1721467839672,-151.0,0.00016438,2]
[332707453,1721467839682,-151.0,0.00016438,2]
[332707455,1721467839691,-540.98,0.00016438,2]
[332707456,1721467839701,-151.0,0.00016438,2]
[332707457,1721467839711,-500.0,0.00016438,2]
[332707458,1721467839721,-151.0,0.00016438,2]
[332707459,1721467839730,-151.0,0.00016438,2]
[332707460,1721467839739,-151.0,0.00016438,2]
[332707461,1721467839749,-500.0,0.00016438,2]
[332707462,1721467839758,-151.0,0.00016438,2]
[332707463,1721467839769,-151.0,0.00016438,2]
[332707464,1721467839779,-151.0,0.00016438,2]
[332707465,1721467839788,-151.0,0.00016438,2]
[332707466,1721467839799,-500.0,0.00016438,2]
[332707467,1721467839809,-1040.5,0.00016438,2]
[332707468,1721467839819,-151.0,0.00016438,2]
[332707469,1721467839829,-261.455826,0.00016438,2]
[332707470,1721467839839,-267.60016793,0.00016438,2]
[332707471,1721467839849,-1081.64,0.00016438,2]
[332707472,1721467839859,-769.8,0.00016438,2]
[332707473,1721467839873,-2946.58,0.00016438,2]
[332707474,1721467839885,-500.0,0.00016438,2]
[332707475,1721467839896,-664.17,0.00016438,2]
[332707476,1721467839906,-506.80581462,0.00016438,2]
[332707477,1721467839918,-500.0,0.00016438,2]
[332707478,1721467839929,-500.0,0.00016438,2]
[332707479,1721467839939,-500.0,0.00016438,2]
[332707480,1721467839951,-1049.52,0.00016438,2]
[332707481,1721467839960,-1176.57,0.00016438,2]
[332707482,1721467839970,-500.0,0.00016438,2]
[332707483,1721467839980,-1336.35,0.00016438,2]
[332707484,1721467839990,-500.0,0.00016438,2]
[332707485,1721467840000,-683.3,0.00016438,2]
[332707486,1721467840010,-614.72,0.00016438,2]
[332707487,1721467840020,-500.0,0.00016438,2]
[332707488,1721467840029,-414.20722905,0.00016438,2]
[332707489,1721467840039,-500.0,0.00016438,2]
[332707490,1721467840049,-500.0,0.00016438,2]
[332707491,1721467840058,-500.0,0.00016438,2]
[332707492,1721467840067,-619.08566216,0.00016438,2]
[332707493,1721467840077,-500.0,0.00016438,2]
[332707494,1721467840086,-2146.84,0.00016438,2]
[332707495,1721467840096,-500.0,0.00016438,2]
[332707496,1721467840106,-726.45,0.00016438,2]
[332707497,1721467840116,-500.0,0.00016438,2]
[332707498,1721467840126,-500.0,0.00016438,2]
[332707499,1721467840135,-500.0,0.00016438,2]
[332707500,1721467840145,-500.0,0.00016438,2]
[332707501,1721467840155,-640.92616767,0.00016438,2]
[332707502,1721467840165,-555.63132399,0.00016438,2]
[332707503,1721467840174,-500.0,0.00016438,2]
[332707504,1721467840184,-546.41,0.00016438,2]
[332707505,1721467840194,-506.45667955,0.00016438,2]
[332707506,1721467840203,-623.2,0.00016438,2]
[332707507,1721467840214,-500.0,0.00016438,2]
[332707508,1721467840224,-4266.98,0.00016438,2]
[332707509,1721467840233,-500.0,0.00016438,2]
[332707510,1721467840243,-659.08,0.00016438,2]
[332707511,1721467840253,-502.439997,0.00016438,2]
[332707512,1721467840262,-500.0,0.00016438,2]
[332707513,1721467840272,-850.37,0.00016438,2]
[332707514,1721467840282,-1503.06,0.00016438,2]
[332707515,1721467840292,-500.0,0.00016438,2]
[332707516,1721467840302,-500.0,0.00016438,2]
[332707517,1721467840311,-1114.92,0.00016438,2]
[332707518,1721467840321,-500.0,0.00016438,2]
[332707519,1721467840517,-500.0,0.00016438,2]
[332707520,1721467840526,-500.0,0.00016438,2]
[332707521,1721467840538,-500.0,0.00016438,2]
[332707522,1721467840547,-500.0,0.00016438,2]
[332707523,1721467840557,-875.32,0.00016438,2]
[332707524,1721467840566,-500.0,0.00016438,2]
[332707525,1721467840575,-739.66,0.00016438,2]
[332707526,1721467840585,-556.82,0.00016438,2]
[332707527,1721467840594,-500.0,0.00016438,2]
[332707528,1721467840603,-515.69,0.00016438,2]
[332707529,1721467840612,-978.92,0.00016438,2]
[332707530,1721467840622,-500.0,0.00016438,2]
[332707531,1721467840632,-1858.52,0.00016438,2]
[332707532,1721467840642,-500.0,0.00016438,2]
[332707533,1721467840651,-562.34,0.00016438,2]
[332707534,1721467840661,-470.27925151,0.00016438,2]
[332707535,1721467840670,-558.46,0.00016438,2]
[332707536,1721467840679,-500.0,0.00016438,2]
[332707537,1721467840688,-1817.59,0.00016438,2]
[332707538,1721467840697,-533.23,0.00016438,2]
[332707539,1721467840707,-510.01589571,0.00016438,2]
[332707540,1721467840716,-889.56,0.00016438,2]
[332707541,1721467840726,-2643.77,0.00016438,2]
[332707542,1721467840735,-791.33,0.00016438,2]
[332707543,1721467840745,-563.28,0.00016438,2]
[332707544,1721467840755,-500.0,0.00016438,2]
[332707545,1721467840765,-500.0,0.00016438,2]
[332707546,1721467840775,-500.0,0.00016438,2]
[332707547,1721467840784,-500.0,0.00016438,2]
[332707548,1721467840796,-500.0,0.00016438,2]
[332707549,1721467840806,-585.1,0.00016438,2]
[332707550,1721467840816,-500.0,0.00016438,2]
[332707551,1721467840825,-500.0,0.00016438,2]
[332707552,1721467840835,-500.0,0.00016438,2]
[332707553,1721467840844,-500.0,0.00016438,2]
[332707554,1721467840856,-242.83089486,0.00016438,2]
[332707555,1721467840865,-500.0,0.00016438,2]
[332707556,1721467840878,-1770.62,0.00016438,2]
[332707557,1721467840888,-500.0,0.00016438,2]
[332707558,1721467840898,-500.0,0.00016438,2]
[332707559,1721467840907,-316.94489928,0.00016438,2]
[332707561,1721467840918,-500.0,0.00016438,2]
[332707563,1721467840928,-2838.28,0.00016438,2]
[332707564,1721467840938,-500.0,0.00016438,2]
[332707565,1721467840950,-500.0,0.00016438,2]
[332707566,1721467840960,-500.0,0.00016438,2]
[332707567,1721467840970,-500.0,0.00016438,2]
[332707569,1721467840979,-1800.93,0.00016438,2]
[332707570,1721467840989,-500.0,0.00016438,2]
[332707571,1721467840998,-500.0,0.00016438,2]
[332707572,1721467841008,-500.0,0.00016438,2]
[332707573,1721467841017,-505.77134862,0.00016438,2]
[332707575,1721467841027,-500.0,0.00016438,2]
[332707576,1721467841038,-500.0,0.00016438,2]
[332707577,1721467841047,-500.0,0.00016438,2]
[332707578,1721467841057,-500.0,0.00016438,2]
[332707579,1721467841067,-500.0,0.00016438,2]
[332707580,1721467841077,-500.0,0.00016438,2]
[332707581,1721467841087,-500.0,0.00016438,2]
[332707582,1721467841096,-500.0,0.00016438,2]
[332707583,1721467841106,-514.96176579,0.00016438,2]
[332707584,1721467841116,-500.0,0.00016438,2]
[332707585,1721467841126,-500.0,0.00016438,2]
[332707586,1721467841137,-1462.9,0.00016438,2]
[332707587,1721467841147,-831.69,0.00016438,2]
[332707588,1721467841158,-500.0,0.00016438,2]
[332707589,1721467841168,-500.0,0.00016438,2]
[332707590,1721467841177,-500.0,0.00016438,2]
[332707591,1721467841186,-500.0,0.00016438,2]
[332707592,1721467841196,-2164.21,0.00016438,2]
[332707593,1721467841210,-512.54286972,0.00016438,2]
[332707594,1721467841220,-500.0,0.00016438,2]
[332707595,1721467841229,-1364.95,0.00016438,2]
[332707596,1721467841239,-501.32246996,0.00016438,2]
[332707597,1721467841248,-569.48,0.00016438,2]
[332707598,1721467841258,-1765.84,0.00016438,2]
[332707599,1721467841268,-2105.56,0.00016438,2]
[332707600,1721467841278,-2407.09,0.00016438,2]
[332707601,1721467841289,-746.38,0.00016438,2]
[332707602,1721467841301,-500.0,0.00016438,2]
[332707603,1721467841313,-500.0,0.00016438,2]
[332707604,1721467841325,-788.49,0.00016438,2]
[332707605,1721467841334,-795.99,0.00016438,2]
[332707606,1721467841345,-500.0,0.00016438,2]
[332707607,1721467841357,-1132.2,0.00016438,2]
[332707608,1721467841367,-500.0,0.00016438,2]
[332707609,1721467841377,-976.56,0.00016438,2]
[332707610,1721467841387,-515.18,0.00016438,2]
[332707611,1721467841398,-513.84908015,0.00016438,2]
[332707612,1721467841409,-500.0,0.00016438,2]
[332707613,1721467841419,-490.71282181,0.00016438,2]
[332707614,1721467841428,-714.17,0.00016438,2]
[332707615,1721467841439,-3890.04,0.00016438,2]
[332707616,1721467841448,-533.73,0.00016438,2]
[332707617,1721467841458,-963.74,0.00016438,2]
[332707618,1721467841467,-673.77,0.00016438,2]
[332707619,1721467841477,-500.0,0.00016438,2]
[332707620,1721467841486,-532.26,0.00016438,2]
[332707621,1721467841496,-500.0,0.00016438,2]
[332707622,1721467841506,-500.0,0.00016438,2]
[332707623,1721467841515,-892.29,0.00016438,2]
[332707624,1721467841525,-308.84696181,0.00016438,2]
[332707625,1721467841535,-708.23,0.00016438,2]
[332707626,1721467841544,-1533.47,0.00016438,2]
[332707627,1721467841553,-514.51672827,0.00016438,2]
[332707628,1721467841563,-3755.11,0.00016438,2]
[332707629,1721467841573,-2049.01,0.00016438,2]
[332707630,1721467841582,-500.0,0.00016438,2]
[332707631,1721467841592,-1237.0,0.00016438,2]
[332707632,1721467841601,-500.0,0.00016438,2]
[332707633,1721467841610,-1255.9,0.00016438,2]
[332707634,1721467841618,-1170.02,0.00016438,2]
[332707635,1721467841628,-236.2,0.00016438,2]
[332707636,1721467841637,-646.2,0.00016438,2]
[332707637,1721467841646,-500.0,0.00016438,2]
[332707638,1721467841655,-777.51,0.00016438,2]
[332707639,1721467841664,-50.91788215,0.00016438,2]
[332707640,1721467841929,-449.08211785,0.00016438,2]
[332707641,1721467841938,-3149.27,0.00016438,2]
[332707642,1721467841949,-5699.15,0.00016438,2]
[332707643,1721467841959,-500.0,0.00016438,2]
[332707644,1721467841970,-404.03518266,0.00016438,2]
[332707645,1721467841981,-5177.74,0.00016438,2]
[332707646,1721467841992,-978.88,0.00016438,2]
[332707647,1721467842002,-796.79,0.00016438,2]
[332707648,1721467842014,-2475.12,0.00016438,2]
[332707649,1721467842025,-500.0,0.00016438,2]
[332707650,1721467842036,-627.31,0.00016438,2]
[332707651,1721467842047,-500.0,0.00016438,2]
[332707652,1721467842057,-500.0,0.00016438,2]
[332707653,1721467842067,-500.0,0.00016438,2]
[332707654,1721467842077,-500.0,0.00016438,2]
[332707655,1721467842088,-151.0,0.00016438,2]
[332707656,1721467842097,-151.0,0.00016438,2]
[332707657,1721467842109,-151.0,0.00016438,2]
[332707658,1721467842120,-151.0,0.00016438,2]
[332707659,1721467842131,-151.0,0.00016438,2]
[332707660,1721467842141,-46.60950866,0.00016438,2]
[332707688,1721467843424,-1474.7101952,0.00015055,2]
[332707689,1721467843434,-104.39049134,0.00016438,2]
[332707690,1721467843443,-115.87931346,0.00016438,2]
[332707691,1721467844269,-35.12068654,0.00016438,2]
[332707692,1721467844280,-151.0,0.00016438,2]
[332707693,1721467844290,-172.328518,0.00016438,2]
[332707694,1721467844300,-1290.56,0.00016438,2]
[332707695,1721467844310,-505.02529902,0.00016438,2]
[332707696,1721467844320,-500.0,0.00016438,2]
[332707697,1721467844329,-500.0,0.00016438,2]
[332707698,1721467844339,-625.22,0.00016438,2]
[332707699,1721467844348,-928.16,0.00016438,2]
[332707700,1721467844357,-2187.63,0.00016438,2]
[332707701,1721467844366,-500.0,0.00016438,2]
[332707702,1721467844376,-5882.91,0.00016438,2]
[332707703,1721467844388,-2496.71,0.00016438,2]
[332707704,1721467844397,-500.0,0.00016438,2]
[332707705,1721467844407,-3534.2,0.00016438,2]
[332707706,1721467844420,-614.24,0.00016438,2]
[332707707,1721467844430,-500.0,0.00016438,2]
[332707708,1721467844439,-500.0,0.00016438,2]
[332707709,1721467844447,-500.0,0.00016438,2]
[332707710,1721467844456,-9539.62,0.00016438,2]
[332707711,1721467844465,-574.99,0.00016438,2]
[332707712,1721467844473,-968.46,0.00016438,2]
[332707713,1721467844482,-501.52214706,0.00016438,2]
[332707714,1721467844491,-508.89,0.00016438,2]
[332707715,1721467844500,-1659.89,0.00016438,2]
[332707716,1721467844510,-2924.86,0.00016438,2]
[332707717,1721467844519,-1872.2,0.00016438,2]
[332707718,1721467844528,-501.29419541,0.00016438,2]
[332707719,1721467844538,-505.7857432,0.00016438,2]
[332707720,1721467844547,-645.24,0.00016438,2]
[332707721,1721467844556,-7978.4,0.00016438,2]
[332707722,1721467844564,-500.0,0.00016438,2]
[332707723,1721467844573,-500.0,0.00016438,2]
[332707724,1721467844582,-1121.23,0.00016438,2]
[332707725,1721467844591,-500.0,0.00016438,2]
[332707726,1721467844600,-3240.75,0.00016438,2]
[332707727,1721467844610,-500.0,0.00016438,2]
[332707728,1721467844618,-500.0,0.00016438,2]
[332707729,1721467844627,-503.42,0.00016438,2]
[332707730,1721467844638,-503.42,0.00016438,2]
[332707731,1721467844647,-503.42,0.00016438,2]
[332707732,1721467844656,-503.42,0.00016438,2]
[332707733,1721467844666,-500.0,0.00016438,2]
[332707734,1721467844675,-503.42,0.00016438,2]
[332707735,1721467844685,-503.42,0.00016438,2]
[332707736,1721467844694,-503.42,0.00016438,2]
[332707737,1721467844703,-503.42,0.00016438,2]
[332707738,1721467844712,-503.42,0.00016438,2]
[332707739,1721467844721,-503.42,0.00016438,2]
[332707740,1721467844731,-503.42,0.00016438,2]
[332707741,1721467844739,-503.42,0.00016438,2]
[332707742,1721467844748,-503.42,0.00016438,2]
[332707743,1721467844758,-219.41559619,0.00016438,2]